fUSD/lending_fUSD_20240211
["ID","MTS","AMOUNT","RATE_DAILY","PERIOD"]
[313721844,1707610266180,-500.0,0.0003863,30]
[313721845,1707610266190,-779.8,0.0003863,30]
[313721846,1707610266199,-500.0,0.0003863,30]
[313721847,1707610266209,-500.0,0.0003863,30]
[313721848,1707610266218,-500.0,0.0003863,30]
[313721849,1707610266237,-500.0,0.0003863,30]
[313721850,1707610266249,-500.0,0.0003863,30]
[313721851,1707610266259,-500.0,0.0003863,5]
[313721852,1707610266268,-605.21125061,0.0003863,30]
[313721853,1707610266279,-518.19770418,0.0003863,30]
[313721854,1707610266288,-500.0,0.0003863,30]
[313721855,1707610266298,-500.0,0.0003863,30]
[313721856,1707610266307,-500.0,0.0003863,30]
[313721857,1707610266317,-500.0,0.0003863,30]
[313721858,1707610266327,-500.0,0.0003863,30]
[313721859,1707610266337,-500.0,0.0003863,30]
[313721860,1707610266347,-1018.01,0.0003863,30]
[313721861,1707610266357,-500.0,0.0003863,30]
[313721862,1707610266367,-523.81,0.0003863,30]
[313721863,1707610266377,-500.0,0.0003863,30]
[313721864,1707610266386,-514.71316624,0.0003863,30]
[313721865,1707610266396,-500.0,0.0003863,30]
[313721866,1707610266407,-500.0,0.0003863,30]
[313721867,1707610266417,-500.0,0.0003863,30]
[313721868,1707610266427,-892.26,0.0003863,30]
[313721869,1707610266438,-500.0,0.0003863,30]
[313721870,1707610266448,-516.44829937,0.0003863,30]
[313721871,1707610266458,-500.0,0.0003863,30]
[313721872,1707610266469,-500.0,0.0003863,30]
[313721873,1707610266479,-1436.22,0.0003863,30]
[313721874,1707610266491,-500.0,0.0003863,30]
[313721875,1707610266500,-500.0,0.0003863,30]
[313721876,1707610266511,-514.21363204,0.0003863,30]
[313721877,1707610266522,-500.0,0.0003863,30]
[313721878,1707610266532,-2124.55,0.0003863,30]
[313721879,1707610266542,-512.62953394,0.0003863,30]
[313721880,1707610266553,-500.0,0.0003863,30]
[313721881,1707610266563,-150.0,0.0003863,30]
[313721882,1707610266573,-511.55408203,0.0003863,30]
[313721883,1707610266584,-500.0,0.0003863,30]
[313721884,1707610266593,-500.0,0.0003863,30]
[313721885,1707610266603,-500.0,0.0003863,30]
[313721886,1707610266613,-500.0,0.0003863,30]
[313721887,1707610266623,-500.0,0.0003863,30]
[313721888,1707610266634,-500.0,0.0003863,30]
[313721889,1707610266644,-500.0,0.0003863,30]
[313721890,1707610266656,-558.57790914,0.0003863,30]
[313721891,1707610266667,-500.0,0.0003863,30]
[313721892,1707610266678,-1666.39,0.0003863,30]
[313721893,1707610266688,-500.0,0.0003863,30]
[313721894,1707610266698,-500.0,0.0003863,30]
[313721895,1707610266709,-446.4,0.0003863,30]
[313721896,1707610266719,-396.33282604,0.0003863,30]
[313721897,1707610266729,-500.0,0.0003863,30]
[313721898,1707610266739,-500.0,0.0003863,30]
[313721899,1707610266750,-605.03,0.0003863,30]
[313721900,1707610266759,-898.78,0.0003863,30]
[313721901,1707610266769,-500.0,0.0003863,30]
[313721902,1707610266779,-168.96301871,0.0003863,30]
[313721903,1707610266789,-500.0,0.0003863,30]
[313721904,1707610266799,-500.0,0.0003863,30]
[313721905,1707610266809,-776.41,0.0003863,2]
[313721906,1707610266818,-618.63,0.0003863,30]
[313721907,1707610266828,-1281.48,0.0003863,30]
[313721908,1707610266838,-500.0,0.0003863,30]
[313721909,1707610266848,-1156.97,0.0003863,30]
[313721910,1707610266858,-500.0,0.0003863,30]
[313721911,1707610266869,-500.0,0.0003863,30]
[313721912,1707610266879,-500.0,0.0003863,30]
[313721913,1707610266889,-516.87783409,0.0003863,30]
[313721914,1707610266899,-500.0,0.0003863,30]
[313721915,1707610266909,-500.0,0.0003863,30]
[313721916,1707610266919,-500.0,0.0003863,30]
[313721917,1707610266929,-500.0,0.0003863,30]
[313721918,1707610266939,-500.0,0.0003863,30]
[313721919,1707610266949,-794.14,0.0003863,30]
[313721920,1707610266959,-500.0,0.0003863,30]
[313721921,1707610266968,-534.09,0.0003863,30]
[313721922,1707610266978,-500.0,0.0003863,30]
[313721923,1707610266988,-500.0,0.0003863,30]
[313721924,1707610266998,-500.0,0.0003863,30]
[313721925,1707610267009,-500.0,0.0003863,30]
[313721926,1707610267018,-374.04,0.0003863,30]
[313721927,1707610267028,-500.0,0.0003863,30]
[313721928,1707610267038,-204.49,0.0003863,30]
[313721929,1707610267049,-500.0,0.0003863,30]
[313721930,1707610267059,-500.0,0.0003863,30]
[313721931,1707610267068,-500.0,0.0003863,30]
[313721932,1707610267080,-575.23,0.0003863,30]
[313721933,1707610267090,-500.0,0.0003863,30]
[313721934,1707610267100,-480.0,0.0003863,30]
[313721935,1707610267110,-1355.68,0.0003863,30]
[313721936,1707610267120,-500.0,0.0003863,30]
[313721937,1707610267129,-500.0,0.0003863,30]
[313721938,1707610267139,-500.0,0.0003863,30]
[313721939,1707610267149,-500.0,0.0003863,30]
[313721940,1707610267159,-500.0,0.0003863,30]
[313721941,1707610267170,-588.00693756,0.0003863,30]
[313721942,1707610267180,-653.77,0.0003863,30]
[313721943,1707610267190,-500.0,0.0003863,30]
[313721944,1707610267200,-500.0,0.0003863,30]
[313721945,1707610267210,-500.0,0.0003863,30]
[313721946,1707610267220,-500.0,0.0003863,30]
[313721947,1707610267230,-500.0,0.0003863,30]
[313721948,1707610267239,-500.0,0.0003863,30]
[313721949,1707610267249,-500.0,0.0003863,30]
[313721950,1707610267259,-500.0,0.0003863,30]
[313721951,1707610267268,-506.54982654,0.0003863,7]
[313721952,1707610267277,-500.0,0.0003863,30]
[313721953,1707610267287,-500.0,0.0003863,30]
[313721954,1707610267297,-500.0,0.0003863,30]
[313721955,1707610267307,-500.0,0.0003863,30]
[313721956,1707610267317,-500.0,0.0003863,30]
[313721957,1707610267326,-500.0,0.0003863,30]
[313721958,1707610267336,-500.0,0.0003863,30]
[313721959,1707610267346,-500.0,0.0003863,30]
[313721960,1707610267355,-500.0,0.0003863,30]
[313721961,1707610267365,-500.0,0.0003863,30]
[313721962,1707610267375,-500.0,0.0003863,30]
[313721963,1707610267384,-503.68282857,0.0003863,30]
[313721964,1707610267395,-500.0,0.0003863,30]
[313721965,1707610267405,-500.0,0.0003863,30]
[313721966,1707610267415,-500.0,0.0003863,30]
[313721967,1707610267425,-500.0,0.0003863,30]
[313721968,1707610267435,-500.0,0.0003863,30]
[313721969,1707610267445,-500.0,0.0003863,30]
[313721970,1707610267455,-500.0,0.0003863,30]
[313721971,1707610267464,-752.25,0.0003863,30]
[313721972,1707610267474,-500.0,0.0003863,30]
[313721973,1707610267484,-1276.85,0.0003863,30]
[313721974,1707610267494,-500.0,0.0003863,30]
[313721975,1707610267503,-500.0,0.0003863,30]
[313721976,1707610267513,-500.0,0.0003863,30]
[313721977,1707610267523,-2174.32,0.0003863,30]
[313721978,1707610267533,-500.0,0.0003863,30]
[313721979,1707610267543,-500.0,0.0003863,30]
[313721980,1707610267552,-500.0,0.0003863,30]
[313721981,1707610267563,-500.0,0.0003863,30]
[313721982,1707610267572,-150.0,0.0003863,30]
[313721983,1707610267582,-500.0,0.0003863,30]
[313721984,1707610267592,-500.0,0.0003863,30]
[313721985,1707610267602,-500.0,0.0003863,30]
[313721986,1707610267611,-500.0,0.0003863,30]
[313721987,1707610267621,-500.0,0.0003863,30]
[313721988,1707610267631,-500.0,0.0003863,30]
[313721989,1707610267641,-500.0,0.0003863,30]
[313721990,1707610267651,-500.0,0.0003863,30]
[313721991,1707610267661,-500.0,0.0003863,30]
[313721992,1707610267670,-500.0,0.0003863,30]
[313721993,1707610267681,-500.0,0.0003863,30]
[313721994,1707610267691,-500.0,0.0003863,30]
[313721995,1707610267701,-500.0,0.0003863,30]
[313721996,1707610267711,-500.0,0.0003863,30]
[313721997,1707610267720,-500.0,0.0003863,30]
[313721998,1707610267730,-500.0,0.0003863,30]
[313721999,1707610267740,-500.0,0.0003863,30]
[313722000,1707610267750,-500.0,0.0003863,30]
[313722001,1707610267759,-500.0,0.0003863,30]
[313722002,1707610267769,-500.0,0.0003863,30]
[313722003,1707610267778,-522.00047501,0.0003863,30]
[313722004,1707610267787,-500.0,0.0003863,30]
[313722005,1707610267796,-500.0,0.0003863,30]
[313722006,1707610267806,-500.0,0.0003863,30]
[313722007,1707610267815,-500.0,0.0003863,30]
[313722008,1707610267824,-500.0,0.0003863,30]
[313722009,1707610267834,-500.0,0.0003863,30]
[313722010,1707610267843,-707.06,0.0003863,30]
[313722011,1707610267852,-344.45,0.0003863,30]
[313722012,1707610267862,-497.7485,0.0003863,30]
[313722013,1707610267871,-500.0,0.0003863,30]
[313722014,1707610267880,-500.0,0.0003863,30]
[313722015,1707610267889,-1238.59,0.0003863,30]
[313722016,1707610267899,-500.0,0.0003863,30]
[313722017,1707610267909,-500.0,0.0003863,30]
[313722018,1707610267918,-500.0,0.0003863,30]
[313722019,1707610267928,-500.0,0.0003863,30]
[313722020,1707610267938,-500.0,0.0003863,30]
[313722021,1707610267947,-510.28097347,0.0003863,30]
[313722022,1707610267956,-500.0,0.0003863,30]
[313722023,1707610267966,-500.0,0.0003863,30]
[313722024,1707610267975,-500.0,0.0003863,30]
[313722025,1707610267984,-500.0,0.0003863,30]
[313722026,1707610267994,-500.0,0.0003863,30]
[313722027,1707610268006,-1160.92,0.0003863,30]
[313722028,1707610268015,-1803.92,0.0003863,30]
[313722029,1707610268025,-500.0,0.0003863,30]
[313722030,1707610268034,-266.04408755,0.0003863,30]
[313722031,1707610268045,-500.0,0.0003863,30]
[313722032,1707610268055,-500.0,0.0003863,30]
[313722033,1707610268064,-500.0,0.0003863,30]
[313722034,1707610268074,-3578.72,0.0003863,30]
[313722035,1707610268084,-500.0,0.0003863,30]
[313722036,1707610268095,-730.93,0.0003863,30]
[313722037,1707610268104,-510.94127991,0.0003863,10]
[313722038,1707610268114,-500.0,0.0003863,30]
[313722039,1707610268123,-500.0,0.0003863,30]
[313722040,1707610268132,-1000.0,0.0003863,120]
[313722041,1707610268142,-500.0,0.0003863,30]
[313722042,1707610268151,-500.0,0.0003863,30]
[313722043,1707610268160,-500.0,0.0003863,30]
[313722044,1707610268171,-500.0,0.0003863,30]
[313722045,1707610268181,-500.0,0.0003863,30]
[313722046,1707610268191,-500.0,0.0003863,30]
[313722047,1707610268202,-862.1,0.0003863,30]
[313722048,1707610268211,-500.0,0.0003863,30]
[313722049,1707610268220,-500.0,0.0003863,30]
[313722050,1707610268229,-500.0,0.0003863,30]
[313722051,1707610268238,-500.0,0.0003863,30]
[313722052,1707610268248,-575.35,0.0003863,30]
[313722053,1707610268257,-599.85,0.0003863,30]
[313722054,1707610268267,-2724.32,0.0003863,30]
[313722055,1707610268277,-500.0,0.0003863,30]
[313722056,1707610268286,-1871.64,0.0003863,30]
[313722057,1707610268296,-500.0,0.0003863,30]
[313722058,1707610268306,-500.0,0.0003863,30]
[313722059,1707610268315,-500.0,0.0003863,30]
[313722060,1707610268324,-500.0,0.0003863,30]
[313722061,1707610268334,-1077.6,0.0003863,30]
[313722062,1707610268343,-500.0,0.0003863,30]
[313722063,1707610268352,-500.0,0.0003863,30]
[313722064,1707610268362,-500.0,0.0003863,30]
[313722065,1707610268372,-500.0,0.0003863,30]
[313722066,1707610268381,-500.0,0.0003863,30]
[313722067,1707610268390,-500.0,0.0003863,30]
[313722068,1707610268399,-703.81,0.0003863,30]
[313722069,1707610268410,-1151.47,0.0003863,5]
[313722070,1707610268608,-684.44,0.0003863,30]
[313722071,1707610268618,-500.0,0.0003863,30]
[313722072,1707610268628,-500.0,0.0003863,30]
[313722073,1707610268638,-500.0,0.0003863,30]
[313722074,1707610268648,-705.76,0.0003863,30]
[313722075,1707610268658,-3377.35,0.0003863,30]
[313722076,1707610268667,-500.0,0.0003863,30]
[313722077,1707610268677,-891.28,0.0003863,30]
[313722078,1707610268686,-500.0,0.0003863,30]
[313722079,1707610268697,-500.0,0.0003863,30]
[313722080,1707610268707,-500.0,0.0003863,30]
[313722081,1707610268717,-3353.73,0.0003863,30]
[313722082,1707610268727,-1396.26,0.0003863,30]
[313722083,1707610268736,-500.0,0.0003863,30]
[313722084,1707610268746,-2242.41,0.0003863,30]
[313722085,1707610268755,-1227.05,0.0003863,30]
[313722086,1707610268765,-500.0,0.0003863,30]
[313722087,1707610268774,-523.95,0.0003863,30]
[313722088,1707610268783,-500.0,0.0003863,30]
[313722089,1707610268792,-500.0,0.0003863,30]
[313722090,1707610268801,-500.0,0.0003863,30]
[313722091,1707610268811,-500.0,0.0003863,30]
[313722092,1707610268820,-1820.65,0.0003863,30]
[313722093,1707610268829,-500.0,0.0003863,30]
[313722094,1707610268839,-500.0,0.0003863,30]
[313722095,1707610268848,-500.0,0.0003863,30]
[313722096,1707610268857,-531.44,0.0003863,30]
[313722097,1707610268866,-500.0,0.0003863,30]
[313722098,1707610268879,-2990.29,0.0003863,30]
[313722099,1707610268889,-509.64489203,0.0003863,30]
[313722100,1707610268899,-3650.43,0.0003863,30]
[313722101,1707610268911,-3060.51,0.0003863,30]
[313722102,1707610268922,-500.0,0.0003863,30]
[313722103,1707610268933,-500.0,0.0003863,30]
[313722104,1707610268943,-500.0,0.0003863,30]
[313722105,1707610268952,-2927.06,0.0003863,30]
[313722106,1707610268962,-510.65,0.0003863,30]
[313722107,1707610268971,-1093.86,0.0003863,30]
[313722108,1707610268980,-212.90028577,0.0003863,30]
[313722109,1707610268990,-2012.7,0.0003863,30]
[313722110,1707610269001,-910.65,0.0003863,30]
[313722111,1707610269010,-500.0,0.0003863,30]
[313722112,1707610269020,-500.0,0.0003863,30]
[313722113,1707610269030,-268.9962878,0.0003863,30]
[313722114,1707610269040,-500.0,0.0003863,30]
[313722115,1707610269050,-807.59,0.0003863,30]
[313722116,1707610269059,-500.0,0.0003863,30]
[313722117,1707610269069,-500.0,0.0003863,30]
[313722118,1707610269078,-543.67196582,0.0003863,30]
[313722119,1707610269088,-1915.67,0.0003863,30]
[313722120,1707610269098,-560.32,0.0003863,30]
[313722121,1707610269107,-500.0,0.0003863,30]
[313722122,1707610269116,-500.0,0.0003863,30]
[313722123,1707610269125,-2276.89,0.0003863,30]
[313722124,1707610269134,-500.0,0.0003863,30]
[313722125,1707610269144,-399.30327831,0.0003863,30]
[313722126,1707610269154,-500.0,0.0003863,30]
[313722127,1707610269163,-500.0,0.0003863,30]
[313722128,1707610269173,-517.48,0.0003863,30]
[313722129,1707610269182,-500.0,0.0003863,30]
[313722130,1707610269191,-500.0,0.0003863,30]
[313722131,1707610269200,-500.0,0.0003863,30]
[313722132,1707610269209,-2119.74,0.0003863,30]
[313722133,1707610269219,-500.0,0.0003863,30]
[313722134,1707610269228,-576.13,0.0003863,30]
[313722135,1707610269238,-1772.33,0.0003863,30]
[313722136,1707610269248,-500.0,0.0003863,30]
[313722137,1707610269257,-500.0,0.0003863,30]
[313722138,1707610269266,-658.24,0.0003863,30]
[313722139,1707610269275,-500.0,0.0003863,30]
[313722140,1707610269285,-527.17,0.0003863,30]
[313722141,1707610269296,-662.01,0.0003863,30]
[313722142,1707610269305,-857.11,0.0003863,30]
[313722143,1707610269314,-500.0,0.0003863,30]
[313722144,1707610269323,-500.0,0.0003863,30]
[313722145,1707610269332,-667.84,0.0003863,30]
[313722146,1707610269341,-500.0,0.0003863,30]
[313722147,1707610269351,-776.11,0.0003863,30]
[313722148,1707610269360,-507.72,0.0003863,30]
[313722149,1707610269369,-500.0,0.0003863,30]
[313722150,1707610269378,-500.0,0.0003863,30]
[313722151,1707610269387,-500.0,0.0003863,30]
[313722152,1707610269396,-500.0,0.0003863,30]
[313722153,1707610269407,-1501.65,0.0003863,30]
[313722154,1707610269415,-500.0,0.0003863,30]
[313722155,1707610269425,-500.0,0.0003863,30]
[313722156,1707610269433,-500.0,0.0003863,30]
[313722157,1707610269443,-500.0,0.0003863,30]
[313722158,1707610269453,-2827.07,0.0003863,30]
[313722159,1707610269463,-500.0,0.0003863,30]
[313722160,1707610269472,-1990.41,0.0003863,30]
[313722161,1707610269481,-500.0,0.0003863,30]
[313722162,1707610269491,-500.0,0.0003863,30]
[313722163,1707610269501,-500.0,0.0003863,30]
[313722164,1707610269510,-543.5,0.0003863,30]
[313722165,1707610269519,-569.32,0.0003863,30]
[313722166,1707610269528,-1316.8,0.0003863,30]
[313722167,1707610269538,-2330.59,0.0003863,30]
[313722168,1707610269547,-500.0,0.0003863,30]
[313722169,1707610269556,-2839.36,0.0003863,30]
[313722170,1707610269566,-716.42,0.0003863,30]
[313722171,1707610269575,-500.0,0.0003863,30]
[313722172,1707610269585,-500.0,0.0003863,30]
[313722173,1707610269594,-678.57,0.0003863,30]
[313722174,1707610269604,-500.0,0.0003863,30]
[313722175,1707610269613,-3208.55,0.0003863,30]
[313722176,1707610269623,-500.0,0.0003863,30]
[313722177,1707610269632,-500.0,0.0003863,30]
[313722178,1707610269642,-500.0,0.0003863,30]
[313722179,1707610269651,-1603.06,0.0003863,30]
[313722180,1707610269661,-596.58,0.0003863,30]
[313722181,1707610269671,-500.0,0.0003863,30]
[313722182,1707610269680,-628.2,0.0003863,2]
[313722183,1707610269690,-500.0,0.0003863,30]
[313722184,1707610269700,-500.0,0.0003863,30]
[313722185,1707610269709,-832.17,0.0003863,30]
[313722186,1707610269718,-5377.42,0.0003863,30]
[313722187,1707610269727,-500.0,0.0003863,30]
[313722188,1707610269736,-500.0,0.0003863,30]
[313722189,1707610269745,-500.0,0.0003863,30]
[313722190,1707610269755,-500.0,0.0003863,30]
[313722191,1707610269765,-500.0,0.0003863,30]
[313722192,1707610269774,-541.7,0.0003863,30]
[313722193,1707610269783,-1918.24,0.0003863,30]
[313722194,1707610269792,-1928.27,0.0003863,30]
[313722195,1707610269801,-2128.25,0.0003863,30]
[313722196,1707610269811,-741.37,0.0003863,30]
[313722197,1707610269820,-2025.45,0.0003863,30]
[313722198,1707610269830,-564.69,0.0003863,30]
[313722199,1707610269839,-500.0,0.0003863,30]
[313722200,1707610269848,-500.0,0.0003863,30]
[313722201,1707610269858,-1483.55,0.0003863,30]
[313722202,1707610269867,-611.31,0.0003863,30]
[313722203,1707610269877,-500.0,0.0003863,30]
[313722204,1707610269887,-1635.02,0.0003863,30]
[313722205,1707610269897,-814.81,0.0003863,2]
[313722206,1707610269906,-500.0,0.0003863,30]
[313722207,1707610269917,-500.0,0.0003863,30]
[313722208,1707610269927,-500.0,0.0003863,30]
[313722209,1707610269937,-500.0,0.0003863,30]
[313722210,1707610269948,-2358.06,0.0003863,30]
[313722211,1707610269958,-500.0,0.0003863,30]
[313722212,1707610269967,-1500.99,0.0003863,30]
[313722213,1707610269976,-586.84,0.0003863,30]
[313722214,1707610269986,-685.12,0.0003863,30]
[313722215,1707610269996,-500.0,0.0003863,30]
[313722216,1707610270008,-2185.3,0.0003863,30]
[313722217,1707610270018,-500.0,0.0003863,30]
[313722218,1707610270027,-500.0,0.0003863,30]
[313722219,1707610270037,-645.12,0.0003863,30]
[313722220,1707610270048,-1843.19,0.0003863,30]
[313722221,1707610270057,-500.0,0.0003863,30]
[313722222,1707610270066,-500.0,0.0003863,30]
[313722223,1707610270076,-1277.27,0.0003863,30]
[313722224,1707610270086,-500.0,0.0003863,30]
[313722225,1707610270097,-500.0,0.0003863,30]
[313722226,1707610270106,-500.0,0.0003863,30]
[313722227,1707610270115,-500.0,0.0003863,30]
[313722228,1707610270124,-500.0,0.0003863,30]
[313722229,1707610270133,-2137.06,0.0003863,30]
[313722230,1707610270142,-1403.07,0.0003863,30]
[313722231,1707610270151,-500.0,0.0003863,30]
[313722232,1707610270161,-500.0,0.0003863,30]
[313722233,1707610270170,-1101.28,0.0003863,30]
[313722234,1707610270179,-500.0,0.0003863,30]
[313722235,1707610270188,-275.18586325,0.0003863,30]
[313722236,1707610270198,-500.0,0.0003863,30]
[313722237,1707610270207,-1419.67,0.0003863,30]
[313722238,1707610270216,-500.0,0.0003863,30]
[313722239,1707610270226,-526.30037811,0.0003863,30]
[313722240,1707610270235,-500.0,0.0003863,30]
[313722241,1707610270244,-897.02,0.0003863,30]
[313722242,1707610270253,-500.0,0.0003863,30]
[313722243,1707610270262,-776.19,0.0003863,30]
[313722244,1707610270272,-1960.65,0.0003863,30]
[313722245,1707610270281,-620.72,0.0003863,30]
[313722246,1707610270290,-4771.36,0.0003863,30]
[313722247,1707610270299,-4583.73,0.0003863,30]
[313722248,1707610270308,-958.98,0.0003863,30]
[313722249,1707610270318,-2072.08,0.0003863,30]
[313722250,1707610270327,-500.0,0.0003863,30]
[313722251,1707610270336,-500.0,0.0003863,30]
[313722252,1707610270345,-500.0,0.0003863,30]
[313722253,1707610270354,-633.78,0.0003863,30]
[313722254,1707610270364,-1220.94,0.0003863,30]
[313722255,1707610270374,-2588.33,0.0003863,30]
[313722256,1707610270384,-502.26,0.0003863,30]
[313722257,1707610270394,-1490.79,0.0003863,5]
[313722258,1707610270403,-534.82,0.0003863,30]
[313722259,1707610270413,-514.89520237,0.0003863,30]
[313722260,1707610270422,-500.00000071,0.0003863,30]
[313722261,1707610270432,-585.3,0.0003863,30]
[313722262,1707610270441,-1608.44,0.0003863,30]
[313722263,1707610270450,-500.0,0.0003863,30]
[313722264,1707610270460,-500.0,0.0003863,30]
[313722265,1707610270469,-1594.61,0.0003863,30]
[313722266,1707610270479,-500.0,0.0003863,30]
[313722267,1707610270488,-500.0,0.0003863,30]
[313722268,1707610270497,-649.03883801,0.0003863,30]
[313722269,1707610270507,-500.0,0.0003863,30]
[313722270,1707610270516,-500.0,0.0003863,30]
[313722271,1707610270525,-500.0,0.0003863,30]
[313722272,1707610270534,-754.42,0.0003863,30]
[313722273,1707610270544,-500.0,0.0003863,30]
[313722274,1707610270553,-500.0,0.0003863,30]
[313722275,1707610270562,-2127.83,0.0003863,30]
[313722276,1707610270571,-500.0,0.0003863,30]
[313722277,1707610270581,-521.81,0.0003863,30]
[313722278,1707610270590,-500.0,0.0003863,30]
[313722279,1707610270599,-744.84,0.0003863,30]
[313722280,1707610270609,-3019.15,0.0003863,30]
[313722281,1707610270619,-500.0,0.0003863,30]
[313722282,1707610270628,-500.0,0.0003863,30]
[313722283,1707610270637,-1177.59,0.0003863,30]
[313722284,1707610270647,-500.0,0.0003863,30]
[313722285,1707610270657,-1625.29,0.0003863,30]
[313722286,1707610270666,-2283.56,0.0003863,30]
[313722287,1707610270676,-1179.38,0.0003863,30]
[313722288,1707610270685,-782.46,0.0003863,30]
[313722289,1707610270694,-500.0,0.0003863,30]
[313722290,1707610270704,-500.0,0.0003863,7]
[313722291,1707610270714,-500.0,0.0003863,30]
[313722292,1707610270723,-500.0,0.0003863,30]
[313722293,1707610270733,-500.0,0.0003863,30]
[313722294,1707610270742,-500.0,0.0003863,30]
[313722295,1707610270752,-500.0,0.0003863,30]
[313722296,1707610270760,-500.0,0.0003863,30]
[313722297,1707610270770,-500.0,0.0003863,30]
[313722298,1707610270779,-2401.63,0.0003863,30]
[313722299,1707610270788,-500.0,0.0003863,30]
[313722300,1707610270797,-500.0,0.0003863,30]
[313722301,1707610270806,-1785.77,0.0003863,5]
[313722302,1707610270815,-153.7803214,0.00038638,7]
[313722303,1707610270824,-178.54963474,0.00038662,7]
[313722304,1707610270834,-406.02706075,0.00038685,7]
[313722305,1707610270843,-1017.6414,0.00038699,2]
[313722306,1707610270852,-156.5370377,0.00038699,7]
[313722307,1707610270862,-1000.0,0.00038732,10]
[313722308,1707610270871,-155.01257736,0.0003876,7]
[313722309,1707610270880,-1185.18693104,0.00038765,2]
[313722310,1707610270889,-150.51389881,0.00038774,7]
[313722311,1707610270898,-150.0,0.00038789,2]
[313722312,1707610270908,-21463.63473487,0.000388,4]
[313722313,1707610270917,-1246.45467347,0.000388,30]
[313722314,1707610270927,-1942.49254106,0.000388,30]
[313722315,1707610270992,-2321.02566697,0.000388,30]
[313722316,1707610271003,-668.75056875,0.000388,30]
[313722317,1707610271012,-26666.71424618,0.000388,30]
[313722318,1707610271022,-150.0,0.000388,28]
[313722319,1707610271031,-166.21743803,0.000388,30]
[313722320,1707610271042,-176.562956,0.000388,10]
[313722321,1707610271052,-153.87,0.000388,3]
[313722322,1707610271062,-153.87,0.000388,3]
[313722323,1707610271072,-153.87,0.000388,3]
[313722324,1707610271082,-153.87,0.000388,3]
[313722325,1707610271094,-2210.5638739,0.00038826,2]
[313722326,1707610271104,-504.3052851,0.00038826,2]
[313722327,1707610271113,-153.7803214,0.0003884,7]
[313722328,1707610271122,-155.57880662,0.00038862,7]
[313722329,1707610271131,-4187.16,0.00038863,7]
[313722330,1707610271141,-4187.16,0.00038863,7]
[313722331,1707610271150,-55810.45870224,0.0003888,2]
[313722332,1707610271160,-55810.45870218,0.0003888,2]
[313722333,1707610271169,-55810.45870218,0.0003888,2]
[313722334,1707610271178,-261.86015269,0.000389,4]
[313722335,1707610271187,-4029.57564319,0.000389,15]
[313722336,1707610271196,-300.0,0.000389,14]
[313722337,1707610271205,-500.0,0.00038904,30]
[313722338,1707610271213,-706.54,0.00038904,30]
[313722339,1707610271222,-500.0,0.00038904,30]
[313722340,1707610271231,-500.0,0.00038904,30]
[313722341,1707610271240,-500.0,0.00038904,30]
[313722342,1707610271249,-775.61,0.00038904,30]
[313722343,1707610271257,-500.0,0.00038904,30]